{"text_format":"1","workbook":"xlsx","n_sheets":9,"sheets":["Instructivo","DEMANDA ANUAL","VOLUMEN DE QUEJAS","COSTO ADMINISTRACIÓN PÚBLICA","RESUMEN DE COSTOS AP","AUXILIAR COSTO ADMINISTRACIÓN","TIEMPO DE RESPUESTA","CANAL ATENCIÓN","RESUMEN"],"not_rendered":{"charts":0,"images":7,"macros":1,"external_links":0,"defined_names":0,"comments":5,"pivot_tables":0},"unopened":[],"bounds":{"document_bytes":16777216,"sheet_cells":100000,"rows_first":2000,"rows_last":500,"rows_between":2000,"halvings":0,"cell_chars":16384,"cell_head_chars":4096},"cells_cut":0,"cells_raw":0,"read":"whole","date_system":"1900"}

{"sheet":"Instructivo","index":0,"n_rows":70,"n_cols":1,"rows_kept":70,"cut":false,"hidden":false,"merged":[]}
["CRITERIO DE PRIORIZACIÓN DE TRÁMITES ADMINISTRATIVOS"]
["Instructivo"]
["Consideraciones generales"]
[]
["En las hojas “COSTO DE ADMINISTRACIÓN PÚBLICA”y “RESUMEN”  para añadir más trámites y que apliquen las fórmulas, se deberá seleccionar la primera fila y copiarla una por cada trámite de la entidad"]
[]
["Todas las hojas tienen columnas de color celeste, en las cuales NO deben ingresar valores ya que contienen fórmulas."]
["Para la carga en GOB.EC. La institución debe recordar que el peso máximo del archivo es de 2 MB."]
["Esquema de puntuación"]
["Para priorizar un trámite, se realizará un análisis de criterios básicos y adicionales basado en información que disponen las instituciones sujetas a esta norma técnica. Cada criterio será puntuado según los lineamientos presentes en esta norma."]
["a) Demanda Anual"]
["Considerará el volumen o frecuencia de las solicitudes que ingresan al año a cada institución para la gestión de un trámite en particular."]
["La identificación del volumen anual de los trámites se realizará a través de sus registros de transacciones y/o el número de visitas de consulta de información realizadas a través de páginas web institucionales."]
["Para realizar el registro realice lo siguiente:"]
["1.- Seleccione la hoja DEMANDA ANUAL"]
["2.- Ingrese los trámites de la institución registrando el identificador y nombre en las columnas respectivas.  "]
["3.- Para cada trámite debe especificar en la columna DEMANDA ANUAL el volumen o frecuencia anual, de acuerdo a lo mencionado anteriormente."]
["4.- Una vez terminado el llenado solicitado presione el botón PUNTUACIÓN, se ordenara de menor a mayor. "]
["5.- Usted visualizará el ordenamiento de los trámites ingresados de acuerdo al número de  volumen o frecuencia anual."]
["6.- Así mismo, usted visualizará el puntaje obtenido en la columna PUNTUACIÓN de acuerdo al grupo obtenido por cada trámite de acuerdo al número de volumen o frecuencia anual cosiderando lo siguiente: ** Primer grupo (trámites con menor demanda no incluye los trámites con demanda 0 ) = 3\n** Segundo grupo (trámites con demanda intermedia) = 6\n** Tercer grupo (trámites con mayor demanda) = 10"]
["Cada vez que requiera actualizar el puntaje presionando el botón puntuación, debe verificar que la celda de la columna puntaje se encuentren vacías, es decir, se debe borrar cualquier valor de puntaje obtenido previamente."]
["b) Volumen de quejas asociadas a un trámite: "]
["Considerará la cantidad de quejas recibidas en relación a un trámite durante un año. Estas quejas deberán estar documentadas en medios físicos y/o digitales."]
["Para determinar la puntuación, se colocará en una tabla todos los trámites con sus correspondientes quejas ordenándose de menor a mayor. Se dividirá en 2 partes en los que cada grupo contenga la misma cantidad de trámites."]
["Para realizar el registro realice lo siguiente:"]
["1.- Seleccione la hoja VOLUMEN DE QUEJAS"]
["2.- Ingrese los trámites de la institución registrando el identificador y nombre en las columnas respectivas.  Si usted requiere de acuerdo al número de trámites copie filas adicionales que estén dentro del cuadro"]
["3.- Para cada trámite debe especificar en la columna VOLUMEN QUEJAS el número de quejas anual, de acuerdo a lo mencionado anteriormente."]
["4.- Una vez terminado el llenado solicitado presione el botón PUNTUACIÓN."]
["5.- Usted visualizará el ordenamiento de los trámites ingresados de acuerdo al número de  volumen o frecuencia anual."]
["6.- Así mismo, usted visualizará el puntaje obtenido en la columna PUNTUACIÓN de acuerdo al grupo obtenido por cada trámite de acuerdo al número de volumen o frecuencia anual cosiderando lo siguiente: La puntuación se basará en los siguientes grupos:\n** Primer grupo (trámites con menor cantidad de quejas, no incluye los trámites con queja 0 ) = 4\n** Segundo grupo (trámites con mayor porcentaje de quejas) = 10"]
["El valor del volumen de quejas no debe ser superior al valor del volumen de la demana, no le permitirá registrar un valor."]
["c) Costo para la administración pública: "]
["En cada trámite, basado en un caso estándar, se deberá estimar el costo incurrido en el costo de personal y recursos necesarios para su atención desde que el administrado entregó todos los requisitos hasta que la institución entregue el producto, respuesta o servicio requerido en el trámite. Se considerará:"]
["• Costo de personal:"]
["Costo del personal para atender el trámite, se excluyen actividades realizadas automáticamente o que dependen del administrado. El tiempo deberá considerar únicamente el tiempo efectivo de trabajo del personal, no debe considerar el tiempo de espera o de movimiento."]
["• Costo de recursos:"]
["Se deberá considerar el costo directo en el que la institución debe incurrir para atender un trámite. Se debe considerar los insumos o materia prima necesaria u cualquier otro que la institución considere pertinente."]
["Para realizar el registro realice lo siguiente:"]
["1.- Seleccione la hoja COSTO ADMINISTRACIÓN PÚBLICA"]
["2.- Ingrese los trámites de la institución registrando el identificador y nombre en las columnas respectivas.  Si usted requiere de acuerdo al número de trámites copie filas adicionales que estén dentro del cuadro"]
["3.- Para calcular el tiempo de las actividades, utilizar la hoja AUXILIAR COSTO ADMINISTRACIÓN donde deberá listar todas las actividades que realiza la institución en un caso estándar y asignar el tiempo mínimo que toma cada actvidad (en horas). El tiempo total de las actividades, deberá ingresar en la correspondiente celda de la hoja COSTO ADMINISTRACIÓN PÚBLICA"]
["4.- En función de la información registrada en el paso 3, la matriz entregará el costo del personal"]
["5.- Completar la columna \"Costo recursos\", en la cual ingresará el costo directo en el que incurre la institución para entregar el trámite. En este valor se considerarán los valores correspondientes a insumos y/o materia prima mínimos que se invierten por cada trámite (no se considera mano de obra)"]
["6.- La columna \"Costo para la adm. pública\" mostrará el costto de este criterio para cada trámite"]
["7,- Para que la fórmula funcione debe arrastrar hacia abajo al último de los támites ingresados, no copiar"]
["7.- Una vez que disponga del Costo para la administración pública, presionar el botón \"GENERAR\"."]
["8. Visualizar la hoja “RESUMEN DE COSTO AP” en la que va a encontrar copiada las celdas necesarias para el ordenamiento y puntuación de las mismas al presionar el botón “PUNTUACIÓN”"]
[]
["d) Tiempo de respuesta: "]
["Considerará los tiempos que a las instituciones les toma dar respuesta a un trámite desde que reciben la solicitud del administrado hasta la finalización del mismo. Para la definición del tiempo se considerará un caso estándar."]
["Para determinar la puntuación, se colocará en una tabla todos los trámites con el tiempo de respuesta, ordenándose de menor a mayor. Se dividirá en 4 grupos, en los que cada uno contenga la misma cantidad de trámites."]
["Para realizar el registro realice lo siguiente:"]
["1.- Seleccione la hoja TIEMPO DE RESPUESTA"]
["2.- Ingrese los trámites de la institución registrando el identificador y nombre en las columnas respectivas.  Si usted requiere de acuerdo al número de trámites copie filas adicionales que estén dentro del cuadro"]
["3.- Para cada trámite debe especificar en la columna TIEMPO RESPUESTA el tiempo, de acuerdo a lo mencionado anteriormente."]
["4.- Una vez terminado el llenado solicitado presione el botón PUNTUACIÓN."]
["5.- Usted visualizará el ordenamiento de los trámites ingresados de acuerdo al número de  volumen o frecuencia anual."]
["6.- Así mismo, usted visualizará el puntaje obtenido en la columna PUNTUACIÓN de acuerdo al grupo obtenido por cada trámite de acuerdo al número de volumen o frecuencia anual cosiderando lo siguiente:  La puntuación considera lo siguiente:\n** Primer grupo (menor o igual a 40 horas laboralres) = 0\n** Segundo grupo mayor  40 horas laboralres) = 30"]
["e) Canal de atención: "]
["Considerará los canales de atención a través de los cuales el administrado puede iniciar el trámite."]
["Para realizar el registro realice lo siguiente:"]
["1.- Seleccione la hoja CANAL ATENCIÓN"]
["2.- Ingrese los trámites de la institución registrando el identificador y nombre en las columnas respectivas.  Si usted requiere de acuerdo al número de trámites copie filas adicionales que estén dentro del cuadro"]
["3.- Para cada trámite debe seleccionar el canal de atención del trámite en la columna CANAL ATENCIÓN, que pueden ser: \nEl trámite se puede completar totalmente en línea: Se considera trámite totalmente en línea cuando el administrado no requiere realizar ninguna interacción presencial con la institución = 0\nEl trámite no se puede completar totalmente en línea: Se considera este caso, cuando el trámite incluye al menos una actividad, incluido mecanismos de pago, en la que el administrado deba acudir presencialmente a la institución, para la realización de dicho trámite. Los trámites presenciales se consideran dentro de esta categoría = 10"]
["4.- De acuerdo a la selección usted obtendrá la puntuación del trámite que se visualizará en la columna PUNTUACIÓN."]
[]
["f) Resumen"]
["En esta hoja deberá consolidar todas las puntuaciones obtenidas para cada trámite en los criterios a) hasta e). Adicionalmente deberá analizar los criterios adicionales que dispone la norma técnica, para estos últimos solamente deberá seleccionar en la celda correspondiente y la matriz asignará la puntuación adicional. Los criterios que deberá considerar son:\n- NECESIDADES CIUDADANAS: Si la institución ha implementado mecanismos para identificar necesidades ciudadanas respecto al trámite, seleccionar \"SI\", caso contrario, seleccionar \"NO\"\n- SUSCEPTIBILIDAD A CORRUPCIÓN: Si la institución dispone de información documentada sobre presuntos actos de corrupción, seleccionar \"SI\", caso contrario, seleccionar \"NO\"\n- VOLUMEN DE DEVOLUCIONES: Si la institución posee documentación sobre devoluciones del trámite en una cantidad significativa, seleccionar \"SI\", caso contrario, seleccionar \"NO\"\nPara que funcione la lista depelgable debe arrastrar la lista y la puntuación hacia abajo al último de los támites ingresados, no copiar"]
["En la columna puntaje total se realizará la sumatoria de los valores de los criterios básicos y adicionales. Este valor deberá registrarse en la plataforma GOB.EC"]

{"sheet":"DEMANDA ANUAL","index":1,"n_rows":45,"n_cols":4,"rows_kept":45,"cut":false,"hidden":false,"merged":[[0,0,0,3],[1,0,1,3]]}
["PRIORIZACIÓN DE TRÁMITES ADMINISTRATIVOS"]
["DEMANDA ANUAL"]
[]
["IDENTIFICADOR","TRÁMITE","DEMANDA ANUAL","PUNTAJE"]
[1,"Aclaración y rectificación de escritura",0,3]
[23,"Inscripción de fideicomisos o negocios fiduciarios Cantón Limón Indanza",0,0]
[41,"PRESCRIPCIÓN ADQUISITIVA EXTRAORDINARIA DE DOMINIO",0,0]
[39,"Unificación de inmuebles urbanos",1,3]
[5,"Aprobación de lotizaciones en el área urbana",2,3]
[14,"Exoneraciones por discapacidad",2,3]
[8,"Cancelación de hipoteca abierta ",4,3]
[25,"Inscripción de Posesión Efectiva CANTÓN - LIMÓN INDANZA",6,3]
[22,"Inscripciones de donación de bienes inmuebles ",6,3]
[33,"Requisitos para donación",6,3]
[7,"Cambio de nominación de cuenta de agua potable Gadmli",9,3]
[3,"Adjudicación de terrenos urbanos",11,3]
[24,"Inscripción de Hipoteca de Bienes Inmuebles",12,3]
[35,"Servicio de alquiler de maquinaria ",15,3]
[37,"Servicio de cementerio",15,3]
[28,"Permiso ocupación de vía publica",21,6]
[18,"Impuesto a los activos totales",23,6]
[15,"Exoneraciones por la ley del anciano",24,6]
[6,"Aprobación de planos Gadmli",27,6]
[20,"Ingreso o actualización del catastro de inmuebles rurales ",30,6]
[11,"Certificado de no estar en una zona de riesgo Gadmli",31,6]
[12,"Contrato de agua potable y alcantarillado Gadmli",37,6]
[30,"plusvalía de predios urbanos ",38,6]
[29,"Permisos trabajadores autónomos locales y ambulantes dentro del cantón ",39,6]
[4,"Aprobación de lotizaciones en el área rural Gadmli",54,6]
[27,"Permiso de construcción Menor",54,6]
[13,"Contratos mercado central y norte del GAD de Limón Indanza",55,6]
[26,"Permiso de construcción Mayor",57,10]
[36,"Servicio de faenamiento en el camal municipal",67,10]
[38,"Traslado de dominio de bienes inmuebles",80,10]
[2,"Actualización de la planimetría",84,10]
[21,"Inscripción de compraventa de bienes inmuebles ",94,10]
[32,"Registro y matriculación de balanzas Gadmli",109,10]
[16,"Impuesto a las alcabalas en predios urbanos y rurales",121,10]
[34,"Requisitos para la razón de inscripción",137,10]
[40,"Uso de suelo urbano y rural",155,10]
[9,"Certificado de avalúos",217,10]
[17,"Impuesto a las patentes municipales",500,10]
[10,"Certificado de bienes y gravámenes",643,10]
[31,"Recaudación con especies valoradas Gadmli",906,10]
[19,"Impuesto a los vehículos (rodaje)",909,10]

{"sheet":"VOLUMEN DE QUEJAS","index":2,"n_rows":45,"n_cols":6,"rows_kept":45,"cut":false,"hidden":false,"merged":[[0,0,0,5],[1,0,1,5]]}
["PRIORIZACIÓN DE TRÁMITES ADMINISTRATIVOS"]
["VOLUMEN DE QUEJAS"]
[]
["IDENTIFICADOR","TRÁMITE","VOLUMEN DEMANDA","VOLUMEN DE QUEJAS","PORCENTAJE","PUNTUACIÓN"]
[1,"Aclaración y rectificación de escritura",0,0,0,0]
[23,"Inscripción de fideicomisos o negocios fiduciarios Cantón Limón Indanza",0,0,0,0]
[41,"PRESCRIPCIÓN ADQUISITIVA EXTRAORDINARIA DE DOMINIO",0,0,0,0]
[39,"Unificación de inmuebles urbanos",1,0,0,0]
[5,"Aprobación de lotizaciones en el área urbana",2,0,0,0]
[14,"Exoneraciones por discapacidad",2,0,0,0]
[8,"Cancelación de hipoteca abierta ",4,0,0,0]
[25,"Inscripción de Posesión Efectiva CANTÓN - LIMÓN INDANZA",6,0,0,0]
[22,"Inscripciones de donación de bienes inmuebles ",6,0,0,0]
[33,"Requisitos para donación",6,0,0,0]
[7,"Cambio de nominación de cuenta de agua potable Gadmli",9,0,0,0]
[3,"Adjudicación de terrenos urbanos",11,0,0,0]
[24,"Inscripción de Hipoteca de Bienes Inmuebles",12,0,0,0]
[35,"Servicio de alquiler de maquinaria ",15,0,0,0]
[37,"Servicio de cementerio",15,0,0,0]
[28,"Permiso ocupación de vía publica",21,0,0,0]
[18,"Impuesto a los activos totales",23,0,0,0]
[15,"Exoneraciones por la ley del anciano",24,0,0,0]
[6,"Aprobación de planos Gadmli",27,0,0,0]
[20,"Ingreso o actualización del catastro de inmuebles rurales ",30,0,0,0]
[11,"Certificado de no estar en una zona de riesgo Gadmli",31,0,0,0]
[12,"Contrato de agua potable y alcantarillado Gadmli",37,0,0,0]
[30,"plusvalía de predios urbanos ",38,0,0,0]
[29,"Permisos trabajadores autónomos locales y ambulantes dentro del cantón ",39,0,0,0]
[4,"Aprobación de lotizaciones en el área rural Gadmli",54,0,0,0]
[27,"Permiso de construcción Menor",54,0,0,0]
[13,"Contratos mercado central y norte del GAD de Limón Indanza",55,0,0,0]
[26,"Permiso de construcción Mayor",57,0,0,0]
[36,"Servicio de faenamiento en el camal municipal",67,0,0,0]
[38,"Traslado de dominio de bienes inmuebles",80,0,0,0]
[2,"Actualización de la planimetría",84,0,0,0]
[21,"Inscripción de compraventa de bienes inmuebles ",94,0,0,0]
[32,"Registro y matriculación de balanzas Gadmli",109,0,0,0]
[16,"Impuesto a las alcabalas en predios urbanos y rurales",121,0,0,0]
[34,"Requisitos para la razón de inscripción",137,0,0,0]
[40,"Uso de suelo urbano y rural",155,0,0,0]
[9,"Certificado de avalúos",217,0,0,0]
[17,"Impuesto a las patentes municipales",500,0,0,0]
[10,"Certificado de bienes y gravámenes",643,0,0,0]
[31,"Recaudación con especies valoradas Gadmli",906,0,0,0]
[19,"Impuesto a los vehículos (rodaje)",909]

{"sheet":"COSTO ADMINISTRACIÓN PÚBLICA","index":3,"n_rows":46,"n_cols":9,"rows_kept":46,"cut":false,"hidden":false,"merged":[[0,0,0,5],[1,0,1,5],[3,0,4,0],[3,1,4,1],[3,2,3,4],[3,5,4,5]]}
["PRIORIZACIÓN DE TRÁMITES ADMINISTRATIVOS"]
["COSTOS PARA LA ADMINISTRACIÓN PÚBLICA"]
[]
["IDENTIFICADOR","TRÁMITE","INSUMOS PARA COSTO",null,null,"COSTO PARA LA ADM. PÚBLICA",null,"SBU",400]
[null,null,"TIEMPO (HORAS)","COSTO PERSONAL","COSTO RECURSOS"]
[1,"Aclaración y rectificación de escritura",0,{"$f":"C6*$I$4/160","v":0},3.38,3.38]
[23,"Inscripción de fideicomisos o negocios fiduciarios Cantón Limón Indanza",0,{"$f":"C7*$I$4/160","v":0},4.5599999999999996,4.5599999999999996]
[41,"PRESCRIPCIÓN ADQUISITIVA EXTRAORDINARIA DE DOMINIO",0,0,4.5599999999999996,4.5599999999999996]
[39,"Unificación de inmuebles urbanos",0,0,5.75,5.75]
[5,"Aprobación de lotizaciones en el área urbana",0,0,6.56,6.56]
[14,"Exoneraciones por discapacidad",0,0,6.75,6.75]
[8,"Cancelación de hipoteca abierta ",0,0,7.56,7.56]
[25,"Inscripción de Posesión Efectiva CANTÓN - LIMÓN INDANZA",0,0,8.3800000000000008,8.3800000000000008]
[22,"Inscripciones de donación de bienes inmuebles ",0,0,10,10]
[33,"Requisitos para donación",0,0,10.38,10.38]
[7,"Cambio de nominación de cuenta de agua potable Gadmli",0,0,11.56,11.56]
[3,"Adjudicación de terrenos urbanos",0,0,11.75,11.75]
[24,"Inscripción de Hipoteca de Bienes Inmuebles",0,0,12.75,12.75]
[35,"Servicio de alquiler de maquinaria ",0,0,12.75,12.75]
[37,"Servicio de cementerio",0,0,12.94,12.94]
[28,"Permiso ocupación de vía publica",0,0,13.75,13.75]
[18,"Impuesto a los activos totales",0,0,14.94,14.94]
[15,"Exoneraciones por la ley del anciano",0,0,15.5,15.5]
[6,"Aprobación de planos Gadmli",0,0,15.56,15.56]
[20,"Ingreso o actualización del catastro de inmuebles rurales ",0,0,16.38,16.38]
[11,"Certificado de no estar en una zona de riesgo Gadmli",0,0,16.559999999999999,16.559999999999999]
[12,"Contrato de agua potable y alcantarillado Gadmli",0,0,23.56,23.56]
[30,"plusvalía de predios urbanos ",0,0,26.13,26.13]
[29,"Permisos trabajadores autónomos locales y ambulantes dentro del cantón ",0,0,26.56,26.56]
[4,"Aprobación de lotizaciones en el área rural Gadmli",0,0,28.5,28.5]
[27,"Permiso de construcción Menor",0,0,31,31]
[13,"Contratos mercado central y norte del GAD de Limón Indanza",0,0,32.130000000000003,32.130000000000003]
[26,"Permiso de construcción Mayor",0,0,32.5,32.5]
[36,"Servicio de faenamiento en el camal municipal",0,0,33.75,33.75]
[38,"Traslado de dominio de bienes inmuebles",0,0,39.75,39.75]
[2,"Actualización de la planimetría",0,0,51.75,51.75]
[21,"Inscripción de compraventa de bienes inmuebles ",0,0,64.56,64.56]
[32,"Registro y matriculación de balanzas Gadmli",0,0,91.31,91.31]
[16,"Impuesto a las alcabalas en predios urbanos y rurales",0,0,102.56,102.56]
[34,"Requisitos para la razón de inscripción",0,0,119.13,119.13]
[40,"Uso de suelo urbano y rural",0,0,205.69,205.69]
[9,"Certificado de avalúos",0,0,207.56,207.56]
[17,"Impuesto a las patentes municipales",0,0,216.5,216.5]
[10,"Certificado de bienes y gravámenes",0,0,216.75,216.75]
[31,"Recaudación con especies valoradas Gadmli",0,0,411,411]
[19,"Impuesto a los vehículos (rodaje)"]

{"sheet":"RESUMEN DE COSTOS AP","index":4,"n_rows":44,"n_cols":4,"rows_kept":44,"cut":false,"hidden":false,"merged":[[0,0,0,5],[1,0,1,5]]}
["PRIORIZACIÓN DE TRÁMITES ADMINISTRATIVOS"]
["COSTOS PARA LA ADMINISTRACIÓN PÚBLICA"]
[]
["IDENTIFICADOR","TRÁMITE","COSTO PARA LA ADM. PÚBLICA","PUNTUACIÓN"]
[15,"Exoneraciones por la ley del anciano",3.38,5]
[11,"Certificado de no estar en una zona de riesgo Gadmli",4.5599999999999996,5]
[14,"Exoneraciones por discapacidad",4.5599999999999996,5]
[9,"Certificado de avalúos",5.75,5]
[13,"Contratos mercado central y norte del GAD de Limón Indanza",6.56,5]
[2,"Actualización de la planimetría",6.75,5]
[27,"Permiso de construcción Menor",7.56,5]
[19,"Impuesto a los vehículos (rodaje)",8.3800000000000008,5]
[40,"Uso de suelo urbano y rural",10,5]
[10,"Certificado de bienes y gravámenes",10.38,5]
[32,"Registro y matriculación de balanzas Gadmli",11.56,5]
[12,"Contrato de agua potable y alcantarillado Gadmli",11.75,5]
[4,"Aprobación de lotizaciones en el área rural Gadmli",12.75,5]
[5,"Aprobación de lotizaciones en el área urbana",12.75,5]
[25,"Inscripción de Posesión Efectiva CANTÓN - LIMÓN INDANZA",12.94,10]
[18,"Impuesto a los activos totales",13.75,10]
[26,"Permiso de construcción Mayor",14.94,10]
[23,"Inscripción de fideicomisos o negocios fiduciarios Cantón Limón Indanza",15.5,10]
[30,"plusvalía de predios urbanos ",15.56,10]
[3,"Adjudicación de terrenos urbanos",16.38,10]
[28,"Permiso ocupación de vía publica",16.559999999999999,10]
[8,"Cancelación de hipoteca abierta ",23.56,10]
[17,"Impuesto a las patentes municipales",26.13,10]
[34,"Requisitos para la razón de inscripción",26.56,10]
[16,"Impuesto a las alcabalas en predios urbanos y rurales",28.5,10]
[36,"Servicio de faenamiento en el camal municipal",31,10]
[31,"Recaudación con especies valoradas Gadmli",32.130000000000003,20]
[20,"Ingreso o actualización del catastro de inmuebles rurales ",32.5,20]
[35,"Servicio de alquiler de maquinaria ",33.75,20]
[7,"Cambio de nominación de cuenta de agua potable Gadmli",39.75,20]
[37,"Servicio de cementerio",51.75,20]
[29,"Permisos trabajadores autónomos locales y ambulantes dentro del cantón ",64.56,20]
[6,"Aprobación de planos Gadmli",91.31,20]
[24,"Inscripción de Hipoteca de Bienes Inmuebles",102.56,20]
[39,"Unificación de inmuebles urbanos",119.13,20]
[33,"Requisitos para donación",205.69,20]
[21,"Inscripción de compraventa de bienes inmuebles ",207.56,20]
[22,"Inscripciones de donación de bienes inmuebles ",216.5,20]
[38,"Traslado de dominio de bienes inmuebles",216.75,20]
[1,"Aclaración y rectificación de escrituras",411,20]

{"sheet":"AUXILIAR COSTO ADMINISTRACIÓN","index":5,"n_rows":44,"n_cols":3,"rows_kept":44,"cut":false,"hidden":false,"merged":[[1,1,1,2]]}
[]
["TRÁMITE:"]
["NO.","ACTIVIDAD","TIEMPO (HORAS)"]
[1,"Aclaración y rectificación de escrituras",80]
[2,"Actualización de la planimetría",0.15]
[3,"Adjudicación de terrenos urbanos",40]
[4,"Aprobación de lotizaciones en el área rural Gadmli",80]
[5,"Aprobación de lotizaciones en el área urbana",80]
[6,"Aprobación de planos Gadmli",8]
[7,"Cambio de nominación de cuenta de agua potable Gadmli",8]
[8,"Cancelación de hipoteca abierta ",1.4]
[9,"Certificado de avalúos",0.2]
[10,"Certificado de bienes y gravámenes",0.2]
[11,"Certificado de no estar en una zona de riesgo Gadmli",0.5]
[12,"Contrato de agua potable y alcantarillado Gadmli",10.45]
[13,"Contratos mercado central y norte del GAD de Limón Indanza",8.3000000000000007]
[14,"Exoneraciones por discapacidad",0.2]
[15,"Exoneraciones por la ley del anciano",0.2]
[16,"Impuesto a las alcabalas en predios urbanos y rurales",9.4]
[17,"Impuesto a las patentes municipales",1]
[18,"Impuesto a los activos totales",0.2]
[19,"Impuesto a los vehículos (rodaje)",0.2]
[20,"Ingreso o actualización del catastro de inmuebles rurales ",23]
[21,"Inscripción de compraventa de bienes inmuebles ",23]
[22,"Inscripciones de donación de bienes inmuebles ",2.4]
[23,"Inscripción de fideicomisos o negocios fiduciarios Cantón Limón Indanza",2.1]
[24,"Inscripción de Hipoteca de Bienes Inmuebles",0.35]
[25,"Inscripción de Posesión Efectiva CANTÓN - LIMÓN INDANZA",1]
[26,"Permiso de construcción Mayor",0.45]
[27,"Permiso de construcción Menor",0.45]
[28,"Permiso ocupación de vía publica",0.2]
[29,"Permisos trabajadores autónomos locales y ambulantes dentro del cantón ",0.35]
[30,"plusvalía de predios urbanos ",1.25]
[31,"Recaudación con especies valoradas Gadmli",0.45]
[32,"Registro y matriculación de balanzas Gadmli",0.2]
[33,"Requisitos para donación",0.3]
[34,"Requisitos para la razón de inscripción",0.45]
[35,"Servicio de alquiler de maquinaria ",0.2]
[36,"Servicio de faenamiento en el camal municipal",0.45]
[37,"Servicio de cementerio",0.3]
[38,"Traslado de dominio de bienes inmuebles",7.35]
[39,"Unificación de inmuebles urbanos",88.4]
[40,"Uso de suelo urbano y rural",4.45]
[null,null,{"$f":"SUM(C4:CC4328:C43)","v":0}]

{"sheet":"TIEMPO DE RESPUESTA","index":6,"n_rows":45,"n_cols":4,"rows_kept":45,"cut":false,"hidden":false,"merged":[[0,0,0,3],[1,0,1,3]]}
["PRIORIZACIÓN DE TRÁMITES ADMINISTRATIVOS"]
["TIEMPO DE RESPUESTA"]
[]
["IDENTIFICADOR","TRÁMITE","TIEMPO RESPUESTA (horas laborables)","PUNTUACIÓN"]
[1,"Aclaración y rectificación de escritura",80,30]
[23,"Inscripción de fideicomisos o negocios fiduciarios Cantón Limón Indanza",0.15,0]
[41,"PRESCRIPCIÓN ADQUISITIVA EXTRAORDINARIA DE DOMINIO",40,0]
[39,"Unificación de inmuebles urbanos",80,30]
[5,"Aprobación de lotizaciones en el área urbana",80,30]
[14,"Exoneraciones por discapacidad",8,0]
[8,"Cancelación de hipoteca abierta ",8,0]
[25,"Inscripción de Posesión Efectiva CANTÓN - LIMÓN INDANZA",1.4,0]
[22,"Inscripciones de donación de bienes inmuebles ",0.2,0]
[33,"Requisitos para donación",0.2,0]
[7,"Cambio de nominación de cuenta de agua potable Gadmli",0.5,0]
[3,"Adjudicación de terrenos urbanos",10.45,0]
[24,"Inscripción de Hipoteca de Bienes Inmuebles",8.3000000000000007,0]
[35,"Servicio de alquiler de maquinaria ",0.2,0]
[37,"Servicio de cementerio",0.2,0]
[28,"Permiso ocupación de vía publica",9.4,0]
[18,"Impuesto a los activos totales",1,0]
[15,"Exoneraciones por la ley del anciano",0.2,0]
[6,"Aprobación de planos Gadmli",0.2,0]
[20,"Ingreso o actualización del catastro de inmuebles rurales ",23,0]
[11,"Certificado de no estar en una zona de riesgo Gadmli",23,0]
[12,"Contrato de agua potable y alcantarillado Gadmli",2.4,0]
[30,"plusvalía de predios urbanos ",2.1,0]
[29,"Permisos trabajadores autónomos locales y ambulantes dentro del cantón ",0.35,0]
[4,"Aprobación de lotizaciones en el área rural Gadmli",1,0]
[27,"Permiso de construcción Menor",0.45,0]
[13,"Contratos mercado central y norte del GAD de Limón Indanza",0.45,0]
[26,"Permiso de construcción Mayor",0.2,0]
[36,"Servicio de faenamiento en el camal municipal",0.35,0]
[38,"Traslado de dominio de bienes inmuebles",1.25,0]
[2,"Actualización de la planimetría",0.45,0]
[21,"Inscripción de compraventa de bienes inmuebles ",0.2,0]
[32,"Registro y matriculación de balanzas Gadmli",0.3,0]
[16,"Impuesto a las alcabalas en predios urbanos y rurales",0.45,0]
[34,"Requisitos para la razón de inscripción",0.2,0]
[40,"Uso de suelo urbano y rural",0.45,0]
[9,"Certificado de avalúos",0.3,0]
[17,"Impuesto a las patentes municipales",7.35,0]
[10,"Certificado de bienes y gravámenes",88.4,30]
[31,"Recaudación con especies valoradas Gadmli",4.45,0]
[19,"Impuesto a los vehículos (rodaje)"]

{"sheet":"CANAL ATENCIÓN","index":7,"n_rows":45,"n_cols":12,"rows_kept":45,"cut":false,"hidden":false,"merged":[[0,0,0,3],[1,0,1,3]]}
["PRIORIZACIÓN DE TRÁMITES ADMINISTRATIVOS"]
["CANAL DE ATENCIÓN"]
[null,null,null,null,null,null,null,null,"Totalmente en Línea",null,null,0]
["IDENTIFICADOR","TRÁMITE","CANAL ATENCIÓN","PUNTUACIÓN",null,null,null,null,"No se completa totalmente en línea.",null,null,10]
[1,"Aclaración y rectificación de escritura","No se completa totalmente en línea.",{"$f":"IF(ISBLANK(C5),\"\",IF(C5=\"Totalmente en línea\",0,IF(C5=\"Inicia en línea\",6,10)))","v":10}]
[23,"Inscripción de fideicomisos o negocios fiduciarios Cantón Limón Indanza","No se completa totalmente en línea.",{"$f":"IF(ISBLANK(C6),\"\",IF(C6=\"Totalmente en línea\",0,IF(C6=\"Inicia en línea\",6,10)))","v":10}]
[41,"PRESCRIPCIÓN ADQUISITIVA EXTRAORDINARIA DE DOMINIO","No se completa totalmente en línea.",10]
[39,"Unificación de inmuebles urbanos","No se completa totalmente en línea.",10]
[5,"Aprobación de lotizaciones en el área urbana","No se completa totalmente en línea.",{"$f":"IF(ISBLANK(C9),\"\",IF(C9=\"Totalmente en línea\",0,IF(C9=\"Inicia en línea\",6,10)))","v":10}]
[14,"Exoneraciones por discapacidad","No se completa totalmente en línea.",{"$f":"IF(ISBLANK(C10),\"\",IF(C10=\"Totalmente en línea\",0,IF(C10=\"Inicia en línea\",6,10)))","v":10}]
[8,"Cancelación de hipoteca abierta ","No se completa totalmente en línea.",10]
[25,"Inscripción de Posesión Efectiva CANTÓN - LIMÓN INDANZA","No se completa totalmente en línea.",10]
[22,"Inscripciones de donación de bienes inmuebles ","No se completa totalmente en línea.",10]
[33,"Requisitos para donación","No se completa totalmente en línea.",10]
[7,"Cambio de nominación de cuenta de agua potable Gadmli","No se completa totalmente en línea.",10]
[3,"Adjudicación de terrenos urbanos","No se completa totalmente en línea.",10]
[24,"Inscripción de Hipoteca de Bienes Inmuebles","No se completa totalmente en línea.",10]
[35,"Servicio de alquiler de maquinaria ","No se completa totalmente en línea.",10]
[37,"Servicio de cementerio","No se completa totalmente en línea.",10]
[28,"Permiso ocupación de vía publica","No se completa totalmente en línea.",10]
[18,"Impuesto a los activos totales","No se completa totalmente en línea.",10]
[15,"Exoneraciones por la ley del anciano","No se completa totalmente en línea.",10]
[6,"Aprobación de planos Gadmli","No se completa totalmente en línea.",10]
[20,"Ingreso o actualización del catastro de inmuebles rurales ","No se completa totalmente en línea.",10]
[11,"Certificado de no estar en una zona de riesgo Gadmli","No se completa totalmente en línea.",10]
[12,"Contrato de agua potable y alcantarillado Gadmli","No se completa totalmente en línea.",10]
[30,"plusvalía de predios urbanos ","No se completa totalmente en línea.",10]
[29,"Permisos trabajadores autónomos locales y ambulantes dentro del cantón ","No se completa totalmente en línea.",10]
[4,"Aprobación de lotizaciones en el área rural Gadmli","No se completa totalmente en línea.",10]
[27,"Permiso de construcción Menor","No se completa totalmente en línea.",10]
[13,"Contratos mercado central y norte del GAD de Limón Indanza","No se completa totalmente en línea.",10]
[26,"Permiso de construcción Mayor","No se completa totalmente en línea.",10]
[36,"Servicio de faenamiento en el camal municipal","No se completa totalmente en línea.",10]
[38,"Traslado de dominio de bienes inmuebles","No se completa totalmente en línea.",10]
[2,"Actualización de la planimetría","No se completa totalmente en línea.",10]
[21,"Inscripción de compraventa de bienes inmuebles ","No se completa totalmente en línea.",10]
[32,"Registro y matriculación de balanzas Gadmli","No se completa totalmente en línea.",10]
[16,"Impuesto a las alcabalas en predios urbanos y rurales","No se completa totalmente en línea.",10]
[34,"Requisitos para la razón de inscripción","No se completa totalmente en línea.",10]
[40,"Uso de suelo urbano y rural","No se completa totalmente en línea.",10]
[9,"Certificado de avalúos","No se completa totalmente en línea.",10]
[17,"Impuesto a las patentes municipales","No se completa totalmente en línea.",10]
[10,"Certificado de bienes y gravámenes","No se completa totalmente en línea.",10]
[31,"Recaudación con especies valoradas Gadmli","No se completa totalmente en línea.",10]
[19,"Impuesto a los vehículos (rodaje)"]

{"sheet":"RESUMEN","index":8,"n_rows":44,"n_cols":25,"rows_kept":44,"cut":false,"hidden":false,"merged":[[1,9,1,10],[1,11,1,12],[1,13,2,13],[0,2,0,6],[0,7,0,12],[1,5,2,5],[1,6,2,6],[1,7,1,8],[1,0,2,0],[1,1,2,1],[1,2,2,2],[1,3,2,3],[1,4,2,4]]}
[null,null,"BÁSICOS",null,null,null,null,"ADICIONALES"]
["ID trámite","Nombre del trámite","Demanda","Quejas","Costo para administración","Tiempo de respuesta","Canal de atención","Necesidades ciudadanas",null,"Susceptibilidad a corrupción",null,"Volumen de devoluciones",null,"PUNTAJE TOTAL"]
[null,null,null,null,null,null,null,"Criterio","Puntuación","Criterio","Puntuación","Criterio","Puntuación",null,null,null,null,null,null,null,"demanda",0,3,6,10]
[1,"Aclaración y rectificación de escritura",3,0,20,30,10,"NO",{"$f":"IF(H4=\"SI\",5,0)","v":0},"NO",{"$f":"IF(J4=\"SI\",10,0)","v":0},"NO",{"$f":"IF(L4=\"SI\",5,0)","v":0},{"$f":"SUM(C4:G4,I4,K4,M4)","v":63},null,null,null,null,null,null,"quejas",0,4,10]
[23,"Inscripción de fideicomisos o negocios fiduciarios Cantón Limón Indanza",0,0,10,0,10,"NO",{"$f":"IF(H5=\"SI\",5,0)","v":0},"NO",{"$f":"IF(J5=\"SI\",10,0)","v":0},"NO",{"$f":"IF(L5=\"SI\",5,0)","v":0},{"$f":"SUM(C5:G5,I5,K5,M5)","v":20},null,null,null,null,null,null,"cpa",5,10,20]
[41,"PRESCRIPCIÓN ADQUISITIVA EXTRAORDINARIA DE DOMINIO",3,0,20,0,10,"NO",0,"NO",0,"NO",0,33,null,null,null,null,null,null,"tr",0,30]
[39,"Unificación de inmuebles urbanos",3,0,5,30,10,"NO",0,"NO",0,"NO",0,48,null,null,null,null,null,null,"ca",0,10]
[5,"Aprobación de lotizaciones en el área urbana",3,0,5,30,10,"NO",0,"NO",0,"NO",0,48,null,null,null,null,null,null,null,"SI","NO"]
[14,"Exoneraciones por discapacidad",3,0,10,0,10,"NO",0,"NO",0,"NO",0,23]
[8,"Cancelación de hipoteca abierta ",3,0,10,0,10,"NO",0,"NO",0,"NO",0,{"$f":"SUM(C44:G44,I10,K10,M10)","v":0}]
[25,"Inscripción de Posesión Efectiva CANTÓN - LIMÓN INDANZA",3,0,20,0,10,"NO",0,"NO",0,"NO",0,33]
[22,"Inscripciones de donación de bienes inmuebles ",3,0,20,0,10,"NO",0,"NO",0,"NO",0,33]
[33,"Requisitos para donación",3,0,20,0,10,"NO",0,"NO",0,"NO",0,33]
[7,"Cambio de nominación de cuenta de agua potable Gadmli",3,0,10,0,10,"NO",0,"NO",0,"NO",0,23]
[3,"Adjudicación de terrenos urbanos",3,0,20,0,10,"NO",0,"NO",0,"NO",0,33]
[24,"Inscripción de Hipoteca de Bienes Inmuebles",3,0,20,0,10,"NO",0,"NO",0,"NO",0,33]
[35,"Servicio de alquiler de maquinaria ",3,0,20,0,10,"NO",0,"NO",0,"NO",0,33]
[37,"Servicio de cementerio",6,0,10,0,10,"NO",0,"NO",0,"NO",0,26]
[28,"Permiso ocupación de vía publica",6,0,10,0,10,"NO",0,"NO",0,"NO",0,26]
[18,"Impuesto a los activos totales",6,0,5,0,10,"NO",0,"NO",0,"NO",0,21]
[15,"Exoneraciones por la ley del anciano",6,0,20,0,10,"NO",0,"NO",0,"NO",0,36]
[6,"Aprobación de planos Gadmli",6,0,20,0,10,"NO",0,"NO",0,"NO",0,36]
[20,"Ingreso o actualización del catastro de inmuebles rurales ",6,0,5,0,10,"NO",0,"NO",0,"NO",0,21]
[11,"Certificado de no estar en una zona de riesgo Gadmli",6,0,5,0,10,"NO",0,"NO",0,"NO",0,21]
[12,"Contrato de agua potable y alcantarillado Gadmli",6,0,10,0,10,"NO",0,"NO",0,"NO",0,26]
[30,"plusvalía de predios urbanos ",6,0,20,0,10,"NO",0,"NO",0,"NO",0,36]
[29,"Permisos trabajadores autónomos locales y ambulantes dentro del cantón ",6,0,5,0,10,"NO",0,"NO",0,"NO",0,21]
[4,"Aprobación de lotizaciones en el área rural Gadmli",6,0,5,0,10,"NO",0,"NO",0,"NO",0,21]
[27,"Permiso de construcción Menor",6,0,5,0,10,"NO",0,"NO",0,"NO",0,21]
[13,"Contratos mercado central y norte del GAD de Limón Indanza",10,0,10,0,10,"NO",0,"NO",0,"NO",0,30]
[26,"Permiso de construcción Mayor",10,0,10,0,10,"NO",0,"NO",0,"NO",0,30]
[36,"Servicio de faenamiento en el camal municipal",10,0,20,0,10,"NO",0,"NO",0,"NO",0,40]
[38,"Traslado de dominio de bienes inmuebles",10,0,5,0,10,"NO",0,"NO",0,"NO",0,25]
[2,"Actualización de la planimetría",10,0,20,0,10,"NO",0,"NO",0,"NO",0,40]
[21,"Inscripción de compraventa de bienes inmuebles ",10,0,5,0,10,"NO",0,"NO",0,"NO",0,25]
[32,"Registro y matriculación de balanzas Gadmli",10,0,10,0,10,"NO",0,"NO",0,"NO",0,30]
[16,"Impuesto a las alcabalas en predios urbanos y rurales",10,0,10,0,10,"NO",0,"NO",0,"NO",0,30]
[34,"Requisitos para la razón de inscripción",10,0,5,0,10,"NO",0,"NO",0,"NO",0,25]
[40,"Uso de suelo urbano y rural",10,0,5,0,10,"NO",0,"NO",0,"NO",0,25]
[9,"Certificado de avalúos",10,0,10,0,10,"NO",0,"NO",0,"NO",0,30]
[17,"Impuesto a las patentes municipales",10,0,5,0,10,"NO",0,"NO",0,"NO",0,25]
[10,"Certificado de bienes y gravámenes",10,0,20,30,10,"NO",0,"NO",0,"NO",0,70]
[31,"Recaudación con especies valoradas Gadmli",10,0,5,0,10,"NO",0,"NO",0,"NO",0,25]
[19,"Impuesto a los vehículos (rodaje)",null,null,null,null,null,null,null,null,null,null,null,25]